fUSD/lending_fUSD_20240215
["ID","MTS","AMOUNT","RATE_DAILY","PERIOD"]
[314164434,1708036248424,-500.0,0.00038356,7]
[314164435,1708036248433,-500.0,0.00038356,7]
[314164436,1708036248442,-500.0,0.00038356,7]
[314164437,1708036248451,-500.0,0.00038356,7]
[314164438,1708036248460,-500.0,0.00038356,7]
[314164439,1708036248469,-500.0,0.00038356,7]
[314164440,1708036248478,-500.0,0.00038356,7]
[314164441,1708036248487,-500.0,0.00038356,7]
[314164442,1708036248496,-500.0,0.00038356,7]
[314164443,1708036248505,-500.0,0.00038356,7]
[314164444,1708036248514,-500.0,0.00038356,7]
[314164445,1708036248524,-1274.37,0.00038356,7]
[314164446,1708036248533,-500.0,0.00038356,7]
[314164447,1708036248542,-500.0,0.00038356,7]
[314164448,1708036248551,-500.0,0.00038356,7]
[314164449,1708036248559,-500.0,0.00038356,7]
[314164450,1708036248568,-500.0,0.00038356,7]
[314164451,1708036248577,-500.0,0.00038356,7]
[314164452,1708036248586,-503.79362809,0.00038356,7]
[314164453,1708036248595,-500.0,0.00038356,7]
[314164454,1708036248604,-166.11207641,0.00038356,7]
[314164455,1708036248613,-500.0,0.00038356,7]
[314164456,1708036248622,-500.0,0.00038356,7]
[314164457,1708036248631,-500.0,0.00038356,7]
[314164458,1708036248641,-500.0,0.00038356,7]
[314164459,1708036248650,-500.0,0.00038356,7]
[314164460,1708036248660,-500.0,0.00038356,7]
[314164461,1708036248669,-500.0,0.00038356,7]
[314164462,1708036248678,-770.36,0.00038356,7]
[314164463,1708036248687,-500.0,0.00038356,7]
[314164464,1708036248696,-500.0,0.00038356,7]
[314164465,1708036248705,-613.95,0.00038356,7]
[314164466,1708036248714,-500.0,0.00038356,7]
[314164467,1708036248723,-500.0,0.00038356,7]
[314164468,1708036248731,-500.0,0.00038356,7]
[314164469,1708036248740,-500.0,0.00038356,7]
[314164470,1708036248749,-500.0,0.00038356,7]
[314164471,1708036248758,-500.0,0.00038356,7]
[314164472,1708036248767,-151.0,0.00038356,7]
[314164473,1708036248776,-2514.34,0.00038356,15]
[314164474,1708036248787,-155.05,0.00038356,2]
[314164475,1708036248796,-68153.0,0.00038356,4]
[314164476,1708036248805,-157.789721,0.00038356,7]
[314164477,1708036248814,-151.0,0.00038356,7]
[314164478,1708036248823,-151.0,0.00038356,7]
[314164479,1708036248833,-151.0,0.00038356,7]
[314164480,1708036248842,-151.0,0.00038356,7]
[314164481,1708036248851,-151.0,0.00038356,7]
[314164482,1708036248861,-156.1,0.00038385,2]
[314164483,1708036248871,-452.61974966,0.000384,7]
[314164484,1708036248880,-518.23,0.000384,3]
[314164485,1708036248890,-518.23,0.000384,3]
[314164486,1708036248899,-518.23,0.000384,3]
[314164487,1708036248908,-518.23,0.000384,3]
[314164488,1708036248917,-518.23,0.000384,3]
[314164489,1708036248926,-518.23,0.000384,3]
[314164490,1708036248935,-518.23,0.000384,3]
[314164491,1708036248944,-518.23,0.000384,3]
[314164492,1708036248954,-518.23,0.000384,3]
[314164493,1708036248963,-518.23,0.000384,3]
[314164494,1708036248972,-518.23,0.000384,3]
[314164495,1708036248981,-518.23,0.000384,3]
[314164496,1708036248990,-518.23,0.000384,3]
[314164497,1708036248999,-518.23,0.000384,3]
[314164498,1708036249008,-518.23,0.000384,3]
[314164499,1708036249017,-518.23,0.000384,3]
[314164500,1708036249026,-518.23,0.000384,3]
[314164501,1708036249035,-518.23,0.000384,3]
[314164502,1708036249044,-518.23,0.000384,3]
[314164503,1708036249053,-518.23,0.000384,3]
[314164504,1708036249062,-154.03,0.000384,3]
[314164505,1708036249071,-150.0,0.00038402,2]
[314164506,1708036249080,-544.94134664,0.0003841,10]
[314164507,1708036249089,-150.0,0.00038415,2]
[314164508,1708036249098,-150.0,0.00038427,2]
[314164509,1708036249111,-152.0,0.00038441,7]
[314164510,1708036249120,-150.0,0.00038447,2]
[314164511,1708036249130,-151.021624,0.00038448,27]
[314164512,1708036249139,-150.0,0.00038481,2]
[314164513,1708036249148,-150.0,0.00038491,2]
[314164514,1708036249157,-515.18351411,0.00038496,2]
[314164515,1708036249166,-1165.16,0.00038498,2]
[314164516,1708036249176,-153.93,0.00038502,2]
[314164517,1708036249185,-150.0,0.00038529,2]
[314164518,1708036249195,-150.0,0.00038543,2]
[314164519,1708036249204,-159.121245,0.00038545,7]
[314164520,1708036249213,-158.603269,0.00038545,7]
[314164521,1708036249222,-204.945274,0.00038545,7]
[314164522,1708036249231,-151.0,0.00038545,7]
[314164523,1708036249240,-151.0,0.00038545,7]
[314164524,1708036249249,-151.0,0.00038545,7]
[314164525,1708036249258,-152.12682,0.00038545,7]
[314164526,1708036249267,-340.323789,0.00038545,7]
[314164527,1708036249276,-340.323789,0.00038545,7]
[314164528,1708036249286,-151.0,0.00038545,7]
[314164529,1708036249295,-151.0,0.00038545,7]
[314164530,1708036249304,-151.0,0.00038545,7]
[314164531,1708036249313,-172.724711,0.00038545,7]
[314164532,1708036249322,-151.0,0.00038545,7]
[314164533,1708036249331,-151.0,0.00038545,7]
[314164534,1708036249340,-152.748963,0.00038545,7]
[314164535,1708036249350,-151.0,0.00038545,7]
[314164536,1708036249358,-151.0,0.00038545,7]
[314164537,1708036249368,-153.218011,0.00038545,7]
[314164538,1708036249377,-4037.33018647,0.00038546,2]
[314164539,1708036249386,-51435.46652935,0.00038546,2]
[314164540,1708036249396,-151.021624,0.00038548,27]
[314164541,1708036249405,-150.0,0.00038566,2]
[314164542,1708036249413,-150.0,0.00038571,2]
[314164543,1708036249422,-150.0,0.00038575,2]
[314164544,1708036249432,-851.33950985,0.00038576,2]
[314164545,1708036249441,-152.0,0.00038578,7]
[314164546,1708036249450,-200.0,0.00038589,10]
[314164547,1708036249459,-156.1,0.00038603,2]
[314164548,1708036249468,-150.0,0.00038603,2]
[314164549,1708036249477,-150.0,0.00038618,2]
[314164550,1708036249486,-533.94499806,0.00038622,2]
[314164551,1708036249495,-2506.27714986,0.00038623,9]
[314164552,1708036249504,-500.0,0.0003863,7]
[314164553,1708036249513,-267.88568123,0.0003863,7]
[314164554,1708036249522,-156.99485917,0.0003863,7]
[314164555,1708036249531,-500.0,0.0003863,7]
[314164556,1708036249541,-238.20103695,0.0003863,7]
[314164557,1708036249550,-237.03447198,0.0003863,7]
[314164558,1708036249559,-500.0,0.0003863,7]
[314164559,1708036249568,-500.0,0.0003863,7]
[314164560,1708036249577,-608.41532139,0.0003863,7]
[314164561,1708036249585,-500.0,0.0003863,7]
[314164562,1708036249595,-500.0,0.0003863,7]
[314164563,1708036249603,-500.0,0.0003863,7]
[314164564,1708036249612,-522.47664279,0.0003863,7]
[314164565,1708036249621,-500.0,0.0003863,7]
[314164566,1708036249630,-500.0,0.0003863,7]
[314164567,1708036249640,-500.0,0.0003863,7]
[314164568,1708036249649,-565.36238069,0.0003863,2]
[314164569,1708036249658,-500.0,0.0003863,2]
[314164570,1708036249667,-500.0,0.0003863,7]
[314164571,1708036249676,-500.0,0.0003863,7]
[314164572,1708036249685,-500.0,0.0003863,7]
[314164573,1708036249694,-500.0,0.0003863,7]
[314164574,1708036249703,-500.0,0.0003863,7]
[314164575,1708036249713,-500.0,0.0003863,7]
[314164576,1708036249722,-500.0,0.0003863,7]
[314164577,1708036249731,-500.0,0.0003863,7]
[314164578,1708036249740,-500.0,0.0003863,7]
[314164579,1708036249749,-500.0,0.0003863,7]
[314164580,1708036249758,-527.08760599,0.0003863,7]
[314164581,1708036249767,-500.0,0.0003863,7]
[314164582,1708036249776,-500.0,0.0003863,7]
[314164583,1708036249785,-500.0,0.0003863,7]
[314164584,1708036249794,-151.0,0.0003863,7]
[314164585,1708036249803,-151.0,0.0003863,7]
[314164586,1708036249812,-151.0,0.0003863,7]
[314164587,1708036249820,-500.0,0.0003863,7]
[314164588,1708036249829,-500.0,0.0003863,7]
[314164589,1708036249838,-164.52,0.0003863,7]
[314164590,1708036249847,-151.0,0.0003863,2]
[314164591,1708036249856,-151.0,0.0003863,2]
[314164592,1708036249866,-151.0,0.0003863,7]
[314164593,1708036249991,-269.358227,0.0003863,7]
[314164594,1708036250001,-500.0,0.0003863,7]
[314164595,1708036250010,-158.083973,0.0003863,7]
[314164596,1708036250019,-500.0,0.0003863,7]
[314164597,1708036250029,-151.0,0.0003863,7]
[314164598,1708036250038,-724.46,0.0003863,7]
[314164599,1708036250047,-151.0,0.0003863,7]
[314164600,1708036250056,-500.0,0.0003863,7]
[314164601,1708036250065,-178.905771,0.0003863,7]
[314164602,1708036250074,-500.0,0.0003863,7]
[314164603,1708036250083,-500.0,0.0003863,7]
[314164604,1708036250093,-500.0,0.0003863,7]
[314164605,1708036250104,-500.0,0.0003863,7]
[314164606,1708036250115,-500.0,0.0003863,7]
[314164607,1708036250124,-500.0,0.0003863,7]
[314164608,1708036250133,-692.42,0.0003863,7]
[314164609,1708036250142,-500.0,0.0003863,7]
[314164610,1708036250151,-160.12032673,0.0003863,7]
[314164611,1708036250161,-500.0,0.0003863,7]
[314164612,1708036250170,-2022.76,0.0003863,7]
[314164613,1708036250179,-500.0,0.0003863,7]
[314164614,1708036250189,-500.0,0.0003863,7]
[314164615,1708036250198,-500.0,0.0003863,7]
[314164616,1708036250207,-761.54,0.0003863,7]
[314164617,1708036250216,-500.0,0.0003863,7]
[314164618,1708036250225,-500.0,0.0003863,7]
[314164619,1708036250234,-560.86,0.0003863,7]
[314164620,1708036250243,-500.0,0.0003863,7]
[314164621,1708036250252,-722.68,0.0003863,7]
[314164622,1708036250261,-500.0,0.0003863,7]
[314164623,1708036250271,-421.49458455,0.0003863,7]
[314164624,1708036250280,-578.81,0.0003863,7]
[314164625,1708036250289,-500.0,0.0003863,7]
[314164626,1708036250297,-500.0,0.0003863,7]
[314164627,1708036250307,-500.0,0.0003863,7]
[314164628,1708036250316,-500.0,0.0003863,7]
[314164629,1708036250325,-500.0,0.0003863,7]
[314164630,1708036250334,-500.0,0.0003863,7]
[314164631,1708036250344,-500.0,0.0003863,7]
[314164632,1708036250353,-500.0,0.0003863,7]
[314164633,1708036250362,-500.0,0.0003863,7]
[314164634,1708036250372,-500.0,0.0003863,7]
[314164635,1708036250382,-500.0,0.0003863,7]
[314164636,1708036250392,-500.0,0.0003863,7]
[314164637,1708036250401,-500.0,0.0003863,7]
[314164638,1708036250410,-500.0,0.0003863,7]
[314164639,1708036250419,-500.0,0.0003863,7]
[314164640,1708036250428,-500.0,0.0003863,7]
[314164641,1708036250438,-500.0,0.0003863,7]
[314164642,1708036250447,-500.0,0.0003863,7]
[314164643,1708036250456,-500.0,0.0003863,7]
[314164644,1708036250465,-500.0,0.0003863,7]
[314164645,1708036250474,-500.0,0.0003863,7]
[314164646,1708036250483,-500.0,0.0003863,7]
[314164647,1708036250492,-500.0,0.0003863,7]
[314164648,1708036250501,-500.0,0.0003863,7]
[314164649,1708036250511,-500.0,0.0003863,7]
[314164650,1708036250520,-500.0,0.0003863,7]
[314164651,1708036250529,-1095.93,0.0003863,7]
[314164652,1708036250537,-500.0,0.0003863,7]
[314164653,1708036250546,-599.93,0.0003863,7]
[314164654,1708036250556,-500.0,0.0003863,7]
[314164655,1708036250565,-500.0,0.0003863,7]
[314164656,1708036250574,-500.0,0.0003863,7]
[314164657,1708036250584,-500.0,0.0003863,7]
[314164658,1708036250593,-814.84,0.0003863,7]
[314164659,1708036250602,-500.0,0.0003863,7]
[314164660,1708036250611,-500.0,0.0003863,7]
[314164661,1708036250621,-500.0,0.0003863,7]
[314164662,1708036250631,-500.0,0.0003863,7]
[314164663,1708036250640,-656.02,0.0003863,7]
[314164664,1708036250650,-500.0,0.0003863,7]
[314164665,1708036250660,-229.89893227,0.0003863,7]
[314164666,1708036250669,-500.0,0.0003863,7]
[314164667,1708036250678,-644.55,0.0003863,7]
[314164668,1708036250687,-620.99,0.0003863,7]
[314164669,1708036250696,-500.0,0.0003863,7]
[314164670,1708036250706,-500.0,0.0003863,7]
[314164671,1708036250716,-500.0,0.0003863,7]
[314164672,1708036250726,-500.0,0.0003863,7]
[314164673,1708036250735,-500.0,0.0003863,7]
[314164674,1708036250744,-500.0,0.0003863,7]
[314164675,1708036250753,-8662.85,0.0003863,7]
[314164676,1708036250761,-500.0,0.0003863,7]
[314164677,1708036250770,-1532.52,0.0003863,7]
[314164678,1708036250779,-500.0,0.0003863,7]
[314164679,1708036250788,-500.0,0.0003863,7]
[314164680,1708036250797,-500.0,0.0003863,7]
[314164681,1708036250806,-500.0,0.0003863,7]
[314164682,1708036250815,-500.0,0.0003863,7]
[314164683,1708036250824,-500.0,0.0003863,7]
[314164684,1708036250833,-500.0,0.0003863,7]
[314164685,1708036250843,-654.99,0.0003863,7]
[314164686,1708036250853,-500.0,0.0003863,7]
[314164687,1708036250862,-500.0,0.0003863,7]
[314164688,1708036250871,-500.0,0.0003863,7]
[314164689,1708036250880,-532.93,0.0003863,7]
[314164690,1708036250890,-500.0,0.0003863,7]
[314164691,1708036250900,-500.0,0.0003863,7]
[314164692,1708036250909,-500.0,0.0003863,7]
[314164693,1708036250918,-500.0,0.0003863,7]
[314164694,1708036250927,-673.82,0.0003863,7]
[314164695,1708036250937,-500.0,0.0003863,7]
[314164696,1708036250947,-500.0,0.0003863,7]
[314164697,1708036250956,-500.0,0.0003863,7]
[314164698,1708036250966,-500.0,0.0003863,7]
[314164699,1708036250975,-500.0,0.0003863,7]
[314164700,1708036250983,-500.0,0.0003863,7]
[314164701,1708036250992,-500.0,0.0003863,7]
[314164702,1708036251001,-500.0,0.0003863,7]
[314164703,1708036251011,-500.0,0.0003863,7]
[314164704,1708036251020,-1274.37,0.0003863,7]
[314164705,1708036251030,-500.0,0.0003863,7]
[314164706,1708036251040,-500.0,0.0003863,7]
[314164707,1708036251050,-402.79667361,0.0003863,7]
[314164708,1708036251059,-500.0,0.0003863,7]
[314164709,1708036251070,-500.0,0.0003863,7]
[314164710,1708036251080,-630.88,0.0003863,7]
[314164711,1708036251089,-500.0,0.0003863,7]
[314164712,1708036251099,-770.36,0.0003863,7]
[314164713,1708036251114,-613.95,0.0003863,7]
[314164714,1708036251123,-500.0,0.0003863,7]
[314164715,1708036251132,-500.0,0.0003863,7]
[314164716,1708036251141,-500.0,0.0003863,7]
[314164717,1708036251151,-500.0,0.0003863,7]
[314164718,1708036251161,-500.0,0.0003863,7]
[314164719,1708036251170,-150.0,0.00038632,2]
[314164720,1708036251180,-150.0,0.00038632,2]
[314164721,1708036251191,-150.0,0.00038637,2]
[314164722,1708036251200,-167.0,0.0003864,2]
[314164723,1708036251210,-151.021624,0.00038648,27]
[314164724,1708036251219,-150.0,0.00038648,2]
[314164725,1708036251229,-2000.0,0.00038662,2]
[314164726,1708036251239,-200.0,0.00038662,2]
[314164727,1708036251249,-200.0,0.00038662,2]
[314164728,1708036251258,-150.0,0.00038668,2]
[314164729,1708036251266,-150.0,0.00038692,2]
[314164730,1708036251275,-150.0,0.00038697,2]
[314164731,1708036251285,-206.0,0.00038698,8]
[314164732,1708036251295,-153.93,0.000387,2]
[314164733,1708036251304,-150.0,0.000387,2]
[314164734,1708036251313,-169.69,0.00038712,2]
[314164735,1708036251324,-152.0,0.00038715,7]
[314164736,1708036251333,-150.0,0.00038717,2]
[314164737,1708036251343,-150.0,0.00038727,2]
[314164738,1708036251353,-151.021624,0.00038748,24]
[314164739,1708036251363,-21794.85516383,0.00038748,12]
[314164740,1708036251373,-1186.62475854,0.00038765,2]
[314164741,1708036251383,-1610.41,0.0003877,7]
[314164742,1708036251393,-1610.41,0.0003877,7]
[314164743,1708036251402,-1610.41,0.0003877,7]
[314164744,1708036251411,-1610.41,0.0003877,7]
[314164745,1708036251420,-150.0,0.00038774,2]
[314164746,1708036251430,-150.0,0.00038785,2]
[314164747,1708036251440,-150.0,0.00038786,2]
[314164748,1708036251449,-150.0,0.0003879,2]
[314164749,1708036251458,-150.0,0.00038793,2]
[314164750,1708036251468,-156.1,0.00038821,2]
[314164751,1708036251478,-150.0,0.00038821,2]
[314164752,1708036251488,-150.0,0.00038835,2]
[314164753,1708036251497,-151.021624,0.00038848,24]
[314164754,1708036251507,-152.0,0.00038852,7]
[314164755,1708036251517,-150.0,0.00038852,2]
[314164756,1708036251526,-150.0,0.00038855,2]
[314164757,1708036251535,-151.0,0.00038856,7]
[314164758,1708036251545,-152.073411,0.00038856,5]
[314164759,1708036251555,-157.283054,0.00038856,7]
[314164760,1708036251564,-157.507856,0.00038856,7]
[314164761,1708036251573,-151.0,0.00038856,7]
[314164762,1708036251583,-158.306838,0.00038856,7]
[314164763,1708036251594,-151.0,0.00038856,7]
[314164764,1708036251604,-150.0,0.00038859,2]
[314164765,1708036251614,-150.0,0.00038869,2]
[314164766,1708036251624,-150.0,0.00038878,2]
[314164767,1708036251634,-150.0,0.00038879,2]
[314164768,1708036251644,-151.0,0.00038889,30]
[314164769,1708036251653,-153.93,0.00038897,2]
[314164770,1708036251663,-150.0,0.00038902,2]
[314164771,1708036251675,-191.019497,0.00038904,7]
[314164772,1708036251684,-151.0,0.00038904,7]
[314164773,1708036251694,-152.94624,0.00038904,7]
[314164774,1708036251704,-151.0,0.00038904,7]
[314164775,1708036251715,-500.0,0.00038904,7]
[314164776,1708036251724,-500.0,0.00038904,7]
[314164777,1708036251733,-500.0,0.00038904,7]
[314164778,1708036251742,-500.0,0.00038904,7]
[314164779,1708036251753,-199.85920608,0.00038904,7]
[314164780,1708036251763,-628.9877523,0.00038904,7]
[314164781,1708036251771,-644.38,0.00038904,7]
[314164782,1708036251780,-500.0,0.00038904,7]
[314164783,1708036251789,-500.0,0.00038904,7]
[314164784,1708036251798,-500.0,0.00038904,7]
[314164785,1708036251807,-500.0,0.00038904,7]
[314164786,1708036251816,-500.0,0.00038904,7]
[314164787,1708036251825,-724.46,0.00038904,7]
[314164788,1708036251835,-500.0,0.00038904,7]
[314164789,1708036251845,-555.41858535,0.00038904,7]
[314164790,1708036251854,-500.0,0.00038904,7]
[314164791,1708036251863,-500.0,0.00038904,7]
[314164792,1708036251872,-692.42,0.00038904,7]
[314164793,1708036251882,-500.0,0.00038904,7]
[314164794,1708036251891,-500.0,0.00038904,7]
[314164795,1708036251901,-2022.76,0.00038904,7]
[314164796,1708036251911,-500.0,0.00038904,7]
[314164797,1708036251921,-500.0,0.00038904,7]
[314164798,1708036251930,-761.54,0.00038904,7]
[314164799,1708036251940,-500.0,0.00038904,7]
[314164800,1708036251949,-500.0,0.00038904,7]
[314164801,1708036251959,-560.86,0.00038904,7]
[314164802,1708036251968,-500.0,0.00038904,7]
[314164803,1708036251978,-722.68,0.00038904,7]
[314164804,1708036251987,-500.0,0.00038904,7]
[314164805,1708036251996,-578.81,0.00038904,7]
[314164806,1708036252005,-500.0,0.00038904,7]
[314164807,1708036252015,-500.0,0.00038904,7]
[314164808,1708036252024,-500.0,0.00038904,7]
[314164809,1708036252034,-500.0,0.00038904,7]
[314164810,1708036252045,-500.0,0.00038904,7]
[314164811,1708036252054,-500.0,0.00038904,7]
[314164812,1708036252064,-500.0,0.00038904,7]
[314164813,1708036252073,-321.56731359,0.00038904,7]
[314164814,1708036252082,-500.0,0.00038904,7]
[314164815,1708036252091,-500.0,0.00038904,7]
[314164816,1708036252101,-500.0,0.00038904,7]
[314164817,1708036252114,-500.0,0.00038904,7]
[314164818,1708036252123,-500.0,0.00038904,7]
[314164819,1708036252132,-500.0,0.00038904,7]
[314164820,1708036252142,-500.0,0.00038904,7]
[314164821,1708036252151,-500.0,0.00038904,7]
[314164822,1708036252160,-336.25588189,0.00038904,7]
[314164823,1708036252169,-500.0,0.00038904,7]
[314164824,1708036252179,-1095.93,0.00038904,7]
[314164825,1708036252189,-500.0,0.00038904,7]
[314164826,1708036252198,-599.93,0.00038904,7]
[314164827,1708036252208,-500.0,0.00038904,7]
[314164828,1708036252217,-500.0,0.00038904,7]
[314164829,1708036252226,-500.0,0.00038904,7]
[314164830,1708036252235,-814.84,0.00038904,7]
[314164831,1708036252244,-500.0,0.00038904,7]
[314164832,1708036252253,-500.0,0.00038904,7]
[314164833,1708036252262,-500.0,0.00038904,7]
[314164834,1708036252271,-500.0,0.00038904,7]
[314164835,1708036252280,-656.02,0.00038904,7]
[314164836,1708036252289,-500.0,0.00038904,7]
[314164837,1708036252298,-500.0,0.00038904,7]
[314164838,1708036252307,-644.55,0.00038904,7]
[314164839,1708036252316,-500.0,0.00038904,7]
[314164840,1708036252326,-500.0,0.00038904,7]
[314164841,1708036252335,-500.0,0.00038904,7]
[314164842,1708036252344,-8662.85,0.00038904,7]
[314164843,1708036252353,-1532.52,0.00038904,7]
[314164844,1708036252363,-606.03496652,0.00038904,7]
[314164845,1708036252372,-500.0,0.00038904,7]
[314164846,1708036252381,-500.0,0.00038904,7]
[314164847,1708036252390,-500.0,0.00038904,7]
[314164848,1708036252400,-500.0,0.00038904,7]
[314164849,1708036252409,-500.0,0.00038904,7]
[314164850,1708036252418,-654.99,0.00038904,7]
[314164851,1708036252426,-500.0,0.00038904,7]
[314164852,1708036252435,-500.0,0.00038904,7]
[314164853,1708036252444,-500.0,0.00038904,7]
[314164854,1708036252454,-532.93,0.00038904,7]
[314164855,1708036252462,-500.0,0.00038904,7]
[314164856,1708036252472,-673.82,0.00038904,7]
[314164857,1708036252480,-500.0,0.00038904,7]
[314164858,1708036252489,-500.0,0.00038904,7]
[314164859,1708036252498,-1274.37,0.00038904,7]
[314164860,1708036252507,-500.0,0.00038904,7]
[314164861,1708036252516,-500.0,0.00038904,7]
[314164862,1708036252525,-500.0,0.00038904,7]
[314164863,1708036252535,-645.42306364,0.00038904,7]
[314164864,1708036252544,-770.36,0.00038904,7]
[314164865,1708036252553,-613.95,0.00038904,7]
[314164866,1708036252562,-500.0,0.00038904,7]
[314164867,1708036252571,-500.0,0.00038904,7]
[314164868,1708036252580,-500.0,0.00038904,7]
[314164869,1708036252589,-150.0,0.00038907,2]
[314164870,1708036252598,-150.0,0.00038921,2]
[314164871,1708036252721,-5000.0,0.00038929,14]
[314164872,1708036252731,-1000.0,0.00038929,14]
[314164873,1708036252740,-150.0,0.00038934,2]
[314164874,1708036252749,-151.021624,0.00038948,24]
[314164875,1708036252759,-200.0,0.00038952,15]
[314164876,1708036252768,-851.33950985,0.00038964,2]
[314164877,1708036252777,-152.0,0.00038989,7]
[314164878,1708036252786,-150.0,0.00038997,2]
[314164879,1708036252795,-500.0,0.00039,7]
[314164880,1708036252804,-500.0,0.00039,7]
[314164881,1708036252813,-500.0,0.00039,7]
[314164882,1708036252822,-500.0,0.00039,7]
[314164883,1708036252831,-500.0,0.00039,7]
[314164884,1708036252840,-500.0,0.00039,7]
[314164885,1708036252849,-500.0,0.00039,7]
[314164886,1708036252858,-500.0,0.00039,7]
[314164887,1708036252867,-500.0,0.00039,7]
[314164888,1708036252876,-500.0,0.00039,7]
[314164889,1708036252885,-500.0,0.00039,7]
[314164890,1708036252894,-500.0,0.00039,7]
[314164891,1708036252903,-500.0,0.00039,7]
[314164892,1708036252912,-500.0,0.00039,7]
[314164893,1708036252921,-500.0,0.00039,7]
[314164894,1708036252930,-500.0,0.00039,7]
[314164895,1708036252940,-500.0,0.00039,7]
[314164896,1708036252949,-500.0,0.00039,7]
[314164897,1708036252958,-500.0,0.00039,7]
[314164898,1708036252967,-500.0,0.00039,7]
[314164899,1708036252976,-500.0,0.00039,7]
[314164900,1708036252986,-500.0,0.00039,7]
[314164901,1708036252995,-257.44,0.00039,7]
[314164902,1708036253004,-300.0,0.00039,5]
[314164903,1708036253013,-2000.0,0.00039,4]
[314164904,1708036253022,-150.0,0.00039009,2]
[314164905,1708036253032,-165.69,0.00039028,2]
[314164906,1708036253041,-533.94499806,0.0003903,2]
[314164907,1708036253050,-156.1,0.00039039,2]
[314164908,1708036253059,-150.0,0.0003904,2]
[314164909,1708036253068,-1610.41,0.00039044,7]
[314164910,1708036253077,-1610.41,0.00039044,7]
[314164911,1708036253086,-151.021624,0.00039048,24]
[314164912,1708036253096,-200.0,0.00039048,2]
[314164913,1708036253109,-150.0,0.00039052,2]
[314164914,1708036253118,-150.0,0.00039055,2]
[314164915,1708036253126,-153.93,0.00039095,2]
[314164916,1708036253134,-150.0,0.00039099,2]
[314164917,1708036253144,-150.0,0.00039109,2]
[314164918,1708036253153,-150.0,0.00039123,2]
[314164919,1708036253162,-152.0,0.00039126,7]
[314164920,1708036253171,-150.0,0.00039126,2]
[314164921,1708036253180,-150.0,0.00039133,2]
[314164922,1708036253190,-151.021624,0.00039148,25]
[314164923,1708036253199,-150.0,0.00039164,2]
[314164924,1708036253209,-527.72,0.00039176,2]
[314164925,1708036253218,-500.0,0.00039178,7]
[314164926,1708036253226,-500.0,0.00039178,7]
[314164927,1708036253236,-500.0,0.00039178,7]
[314164928,1708036253245,-342.90386106,0.00039178,7]
[314164929,1708036253254,-194.26,0.00039178,7]
[314164930,1708036253263,-500.0,0.00039178,7]
[314164931,1708036253272,-724.46,0.00039178,7]
[314164932,1708036253281,-500.0,0.00039178,7]
[314164933,1708036253290,-500.0,0.00039178,7]